bitfinex/quotes_BTCUSD_20230120
["timestamp","ask_amount","ask_price","bid_price","bid_amount"]
[1674230627425,0.0751,21164.0,21163.0,0.988036]
[1674230627694,0.387041,21164.0,21163.0,0.988036]
[1674230627933,0.0751,21164.0,21163.0,0.988036]
[1674230628946,0.0751,21164.0,21163.0,0.981036]
[1674230629195,0.0751,21164.0,21163.0,0.988036]
[1674230629451,0.53057076,21164.0,21163.0,0.988036]
[1674230629697,0.84620676,21164.0,21163.0,0.988036]
[1674230629956,0.84644149,21164.0,21163.0,0.988036]
[1674230630453,0.53080549,21164.0,21163.0,0.988036]
[1674230630806,0.07533473,21164.0,21163.0,0.988036]
[1674230631729,0.74509096,21164.0,21163.0,0.988036]
[1674230631982,0.74509096,21164.0,21163.0,0.515518]
[1674230633004,1.29819265,21164.0,21163.0,0.043]
[1674230633307,1.44819265,21164.0,21163.0,0.043]
[1674230636366,2.04119342,21164.0,21163.0,0.043]
[1674230636627,5.23378896,21164.0,21163.0,0.043]
[1674230636883,6.67532934,21164.0,21163.0,0.043]
[1674230637192,5.60736403,21164.0,21163.0,0.043]
[1674230637437,6.1417891,21164.0,21163.0,0.043]
[1674230637697,0.15,21163.0,21157.0,0.5620556]
[1674230637970,2.2703901,21162.0,21159.0,0.31491194]
[1674230638250,0.1505,21160.0,21159.0,0.36266312]
[1674230638743,0.485093,21160.0,21159.0,0.04775118]
[1674230638746,0.85112378,21160.0,21159.0,0.04775118]
[1674230639001,0.85112378,21160.0,21157.0,0.95846567]
[1674230639259,0.0759,21158.0,21157.0,0.92246567]
[1674230639543,0.400756,21158.0,21157.0,0.92246567]
[1674230639804,0.400756,21158.0,21157.0,0.95846567]
[1674230640353,0.400756,21158.0,21157.0,0.91788554]
[1674230641162,0.400756,21158.0,21157.0,1.39054154]
[1674230641682,0.400756,21158.0,21157.0,0.91788554]
[1674230642496,0.400756,21158.0,21157.0,0.54984052]
[1674230643022,0.438756,21158.0,21157.0,0.54984052]
[1674230643301,0.438756,21158.0,21157.0,0.95512448]
[1674230643563,0.438756,21158.0,21157.0,0.80512448]
[1674230644036,0.438756,21158.0,21157.0,1.27778048]
[1674230645094,0.424199,21158.0,21157.0,1.27778048]
[1674230645338,0.424199,21158.0,21157.0,1.21181749]
[1674230645339,0.1139,21158.0,21157.0,1.21181749]
[1674230645603,0.038,21158.0,21157.0,1.79515252]
[1674230645882,0.038,21158.0,21157.0,1.82889729]
[1674230646141,0.038,21158.0,21157.0,1.94410452]
[1674230646453,0.038,21158.0,21157.0,2.24410452]
[1674230646719,0.038,21158.0,21157.0,2.23895796]
[1674230646979,0.038,21158.0,21157.0,1.94410452]
[1674230647260,0.038,21158.0,21157.0,2.24410452]
[1674230647518,0.03165392,21158.0,21157.0,2.24410452]
[1674230647790,0.03165392,21158.0,21157.0,2.57470679]
[1674230648041,0.03165392,21158.0,21157.0,2.6977299]
[1674230648311,0.03165392,21158.0,21157.0,2.64122619]
[1674230648619,0.0755,21164.0,21158.0,0.15]
[1674230648884,0.0755,21164.0,21163.0,0.51384052]
[1674230649188,0.0755,21164.0,21163.0,2.36718606]
[1674230649462,0.0755,21164.0,21163.0,1.87900809]
[1674230650538,0.1495,21164.0,21163.0,1.88100809]
[1674230654496,0.074,21164.0,21163.0,1.88100809]
[1674230654693,0.074,21164.0,21163.0,1.82520402]
[1674230656223,0.074,21164.0,21163.0,1.46088452]
[1674230656488,0.074,21164.0,21163.0,2.23031622]
[1674230656713,0.074,21164.0,21163.0,1.93031622]
[1674230657764,0.074,21164.0,21163.0,1.61088452]
[1674230658032,0.074,21164.0,21163.0,2.30896352]
[1674230658307,0.074,21164.0,21163.0,2.31835752]
[1674230658832,0.074,21164.0,21163.0,2.79087952]
[1674230660469,0.074,21164.0,21163.0,2.8680939]
[1674230660752,0.074,21164.0,21163.0,2.8365209]
[1674230661057,0.074,21164.0,21163.0,3.1689739]
[1674230661304,0.01431824,21166.0,21163.0,2.9106349]
[1674230661564,0.01431824,21166.0,21163.0,2.47630652]
[1674230661565,0.007,21164.0,21163.0,2.47630652]
[1674230661842,0.29769097,21164.0,21163.0,2.27315326]
[1674230662122,0.09637,21164.0,21163.0,1.45888452]
[1674230662375,0.09637,21164.0,21163.0,1.47788452]
[1674230662376,0.73865859,21164.0,21163.0,1.47788452]
[1674230662633,0.73865859,21164.0,21163.0,0.51384052]
[1674230662889,0.73865859,21164.0,21163.0,0.53284052]
[1674230663164,0.74565859,21164.0,21163.0,0.019]
[1674230664471,0.73865859,21164.0,21161.0,0.72061251]
[1674230664731,0.50621759,21164.0,21163.0,0.002]
[1674230664997,0.83421859,21164.0,21163.0,0.002]
[1674230665514,0.76021859,21164.0,21161.0,0.72060751]
[1674230665787,0.326885,21163.0,21161.0,0.72260751]
[1674230666050,0.52584759,21164.0,21161.0,0.52214014]
[1674230666051,0.300509,21162.0,21161.0,0.52214014]
[1674230666315,0.300509,21162.0,21160.0,0.51384052]
[1674230666566,0.4866,21161.0,21160.0,0.51384052]
[1674230667654,0.92279443,21161.0,21160.0,0.51384052]
[1674230668437,1.16709917,21161.0,21160.0,0.52984052]
[1674230668712,0.92779443,21161.0,21160.0,0.52984052]
[1674230668930,0.77779443,21161.0,21160.0,0.52984052]
[1674230669186,0.3416,21161.0,21160.0,0.81161023]
[1674230669436,0.3416,21161.0,21160.0,0.96161023]
[1674230670019,0.3416,21161.0,21160.0,0.81161023]
[1674230670200,0.3416,21161.0,21160.0,1.28419923]
[1674230670452,0.005,21161.0,21160.0,1.75678823]
[1674230670708,0.005,21161.0,21160.0,1.90678823]
[1674230672002,0.00488076,21161.0,21160.0,1.90678823]
[1674230674090,0.00488076,21161.0,21160.0,2.52935723]
[1674230674341,0.00488076,21161.0,21160.0,2.22935723]
[1674230674605,0.00488076,21161.0,21160.0,2.52935723]
[1674230674913,0.00488076,21161.0,21160.0,2.22935723]
[1674230675208,0.00488076,21161.0,21160.0,1.90678823]
[1674230675965,0.00488076,21161.0,21160.0,1.94711752]
[1674230676198,0.00488076,21161.0,21160.0,2.24711752]
[1674230676693,0.00488076,21161.0,21160.0,2.32983974]
[1674230676979,0.00488076,21161.0,21160.0,2.62983974]
[1674230677685,0.00488076,21161.0,21160.0,2.30774074]
[1674230678442,0.00488076,21161.0,21160.0,2.61913374]
[1674230680527,0.00488076,21161.0,21160.0,2.31913374]
[1674230680783,0.00488076,21161.0,21160.0,2.00774074]
[1674230682365,0.00488076,21161.0,21160.0,2.30774074]
[1674230682941,0.00488076,21161.0,21160.0,2.24282952]
[1674230683198,0.00488076,21161.0,21160.0,2.58109009]
[1674230684558,0.00488076,21161.0,21160.0,1.96327909]
[1674230685645,0.00488076,21161.0,21160.0,2.25411552]
[1674230689300,0.00488076,21161.0,21160.0,2.36689212]
[1674230690915,0.00488076,21161.0,21160.0,2.54630017]
[1674230691116,0.00488076,21161.0,21160.0,2.65934528]
[1674230691369,0.00488076,21161.0,21160.0,2.54630017]
[1674230691888,0.00488076,21161.0,21160.0,2.36716756]
[1674230692201,0.00488076,21161.0,21160.0,2.68604021]
[1674230692406,0.00488076,21161.0,21160.0,2.36716756]
[1674230692942,0.00488076,21161.0,21160.0,3.0132074]
[1674230693225,0.00480628,21161.0,21160.0,2.36716756]
[1674230693492,0.00480628,21161.0,21160.0,2.65938363]
[1674230693747,0.00480628,21161.0,21160.0,2.54633159]
[1674230694533,0.00480628,21161.0,21160.0,2.84815517]
[1674230695065,0.00507498,21161.0,21160.0,2.84815517]
[1674230695323,0.00507498,21161.0,21160.0,2.92244063]
[1674230695568,0.00507498,21161.0,21160.0,2.73530151]
[1674230696333,0.00507498,21161.0,21160.0,2.22146099]
[1674230696589,0.00507498,21161.0,21160.0,2.73530151]
[1674230696848,0.00507498,21161.0,21160.0,2.56354924]
[1674230697130,0.00507498,21161.0,21160.0,3.07738976]
[1674230697394,0.00507498,21161.0,21160.0,2.95433859]
[1674230697635,0.00507498,21161.0,21160.0,2.73521855]
[1674230698465,0.00507498,21161.0,21160.0,3.04794612]
[1674230698739,0.00507498,21161.0,21160.0,2.92497791]
[1674230698994,0.00507498,21161.0,21160.0,3.04795419]
[1674230699484,0.00507498,21161.0,21160.0,2.73522662]
[1674230700251,0.00507498,21161.0,21160.0,3.13385591]
[1674230700772,0.00507498,21161.0,21160.0,2.84808028]
[1674230701044,0.00426433,21161.0,21160.0,2.67891538]
[1674230701554,0.00426433,21161.0,21160.0,2.96058988]
[1674230701815,0.00426433,21161.0,21160.0,3.04912872]
[1674230702089,0.00426433,21161.0,21160.0,3.10588783]
[1674230702665,0.00426433,21161.0,21160.0,2.81330292]
[1674230703439,0.00426433,21161.0,21160.0,2.61269821]
[1674230703710,0.00426433,21161.0,21160.0,2.73504923]
[1674230703982,0.00426433,21161.0,21160.0,3.0308957]
[1674230704246,0.00426433,21161.0,21160.0,2.90854468]
[1674230704760,0.00426433,21161.0,21160.0,3.03090534]
[1674230705001,0.00426433,21161.0,21160.0,2.73505887]
[1674230705274,0.00426433,21161.0,21160.0,2.62198481]
[1674230705507,0.00426433,21161.0,21160.0,2.84790839]
[1674230705792,0.00426433,21161.0,21160.0,3.25551446]
[1674230706051,0.00426433,21161.0,21160.0,2.62198481]
[1674230706300,0.00426433,21161.0,21160.0,2.97308198]
[1674230706803,0.00426433,21161.0,21160.0,2.84790839]
[1674230707331,0.00426433,21161.0,21160.0,3.17997704]
[1674230707593,0.00426433,21161.0,21160.0,2.84790839]
[1674230708097,0.00426433,21161.0,21160.0,3.20408185]
[1674230708357,0.00426433,21161.0,21160.0,3.16081162]
[1674230709164,0.00426433,21161.0,21160.0,2.6469711]
[1674230709381,0.00426433,21161.0,21160.0,3.16081162]
[1674230710187,0.00426433,21161.0,21160.0,2.95997426]
[1674230711190,0.00369561,21161.0,21160.0,2.95997426]
[1674230712225,0.00369561,21161.0,21160.0,2.44613374]
[1674230712498,0.00369561,21161.0,21160.0,2.95997426]
[1674230713286,0.00369561,21161.0,21160.0,3.24118578]
[1674230714838,0.00369561,21162.0,21161.0,0.49757494]
[1674230715106,0.00369561,21162.0,21161.0,2.01916665]
[1674230715375,0.10185561,21162.0,21161.0,1.29986002]
[1674230715867,0.19822561,21162.0,21161.0,0.945134]
[1674230716138,0.97060138,21162.0,21161.0,0.945134]
[1674230716675,1.00760138,21162.0,21161.0,0.948134]
[1674230718260,1.00760138,21162.0,21161.0,0.475567]
[1674230719060,1.00801048,21162.0,21161.0,0.475567]
[1674230719333,0.54454271,21162.0,21161.0,0.475567]
[1674230720152,0.35001271,21162.0,21161.0,1.28432822]
[1674230720409,0.04110471,21162.0,21161.0,1.28432822]
[1674230720684,0.04110471,21162.0,21161.0,1.43432822]
[1674230722025,0.04110471,21162.0,21161.0,1.098134]
[1674230722378,0.04110471,21162.0,21161.0,1.98851911]
[1674230722639,0.04110471,21162.0,21161.0,1.68851911]
[1674230722866,0.04110471,21162.0,21161.0,1.62306002]
[1674230723134,0.04110471,21162.0,21161.0,2.30878113]
[1674230723388,0.04110471,21162.0,21161.0,2.1971092]
[1674230723840,0.04110471,21162.0,21161.0,2.01626717]
[1674230723841,0.04110471,21162.0,21161.0,1.71626717]
[1674230724877,0.04100243,21162.0,21161.0,1.71626717]
[1674230725372,0.04100243,21162.0,21161.0,1.60304115]
[1674230725915,0.04100243,21162.0,21161.0,1.71626717]
[1674230726651,0.04100243,21162.0,21161.0,1.32306002]
[1674230726904,0.04110471,21162.0,21161.0,2.44524967]
[1674230727158,0.04110471,21162.0,21161.0,2.86972732]
[1674230727469,0.04110471,21162.0,21161.0,3.16974107]
[1674230727952,0.04110471,21162.0,21161.0,3.16974474]
[1674230728487,0.04110471,21162.0,21161.0,2.86974474]
[1674230728790,0.04110471,21162.0,21161.0,2.86974475]
[1674230729520,0.04110471,21162.0,21161.0,2.74726983]
[1674230729796,0.04110471,21162.0,21161.0,2.2298638]
[1674230730040,0.04110471,21162.0,21161.0,2.11663716]
[1674230730299,0.04110471,21162.0,21161.0,2.2298638]
[1674230730807,0.04079789,21162.0,21161.0,2.5588468]
[1674230731061,0.04069561,21162.0,21161.0,2.5588468]
[1674230731558,0.04069561,21162.0,21161.0,2.2298638]
[1674230732023,0.04069561,21162.0,21161.0,2.5502398]
[1674230732281,0.04069561,21162.0,21161.0,2.72007883]
[1674230732544,0.04069561,21162.0,21161.0,2.2298638]
[1674230733073,0.04069561,21162.0,21161.0,2.0798638]
[1674230733331,0.04069561,21162.0,21161.0,1.98216086]
[1674230734379,0.04069561,21162.0,21161.0,1.87046086]
[1674230734648,0.04069561,21162.0,21161.0,1.35662034]
[1674230735759,0.04069561,21162.0,21161.0,1.50662034]
[1674230736296,0.04069561,21162.0,21161.0,1.61984698]
[1674230737143,0.04069561,21162.0,21161.0,1.91134658]
[1674230737413,0.04069561,21162.0,21161.0,2.52503758]
[1674230737658,0.04069561,21162.0,21161.0,2.53461658]
[1674230738229,0.04062977,21162.0,21161.0,2.1336875]
[1674230739009,0.04062977,21162.0,21161.0,1.46984698]
[1674230739333,0.04062977,21162.0,21161.0,2.1336875]
[1674230740108,0.04062977,21162.0,21161.0,2.74492829]
[1674230740388,0.04062977,21162.0,21161.0,3.04492829]
[1674230740649,0.04062977,21162.0,21161.0,2.93170165]
[1674230741441,0.04062977,21162.0,21161.0,3.15815005]
[1674230742143,0.04062977,21162.0,21161.0,1.96786113]
[1674230742404,0.04062977,21162.0,21161.0,2.13007801]
[1674230742679,0.04062977,21162.0,21161.0,1.84700243]
[1674230743723,0.04062977,21162.0,21161.0,1.33316191]
[1674230744961,0.04062977,21162.0,21161.0,1.44639846]
[1674230745230,0.04062977,21162.0,21161.0,1.33316191]
[1674230745760,0.37923877,21162.0,21161.0,1.33316191]
[1674230748311,0.04062977,21162.0,21161.0,1.33316191]
[1674230748581,0.04062977,21162.0,21161.0,1.59639846]
[1674230749015,0.04062977,21162.0,21161.0,1.44639846]
[1674230749245,0.04062977,21162.0,21161.0,1.33316191]
[1674230749888,0.04062977,21162.0,21161.0,1.48306893]
[1674230750121,0.04062977,21162.0,21161.0,1.33306893]
[1674230750361,0.04062977,21162.0,21161.0,1.48306893]
[1674230751792,0.04062977,21162.0,21161.0,1.47306893]
[1674230752065,0.04062977,21162.0,21161.0,1.32306893]
[1674230753278,0.04062977,21162.0,21161.0,1.32363771]
[1674230753548,0.04062977,21162.0,21161.0,1.47363771]
[1674230754278,0.04062977,21162.0,21161.0,1.32363771]
[1674230754861,0.04062977,21162.0,21161.0,1.47363771]
[1674230755521,0.04062977,21162.0,21161.0,1.32363771]
[1674230755822,0.04062977,21162.0,21161.0,1.47363771]
[1674230756301,0.04062977,21162.0,21161.0,1.32363771]
[1674230757281,0.36298377,21162.0,21161.0,1.32363771]
[1674230758067,0.44449487,21162.0,21161.0,0.9541335]
[1674230759797,0.36298377,21162.0,21161.0,0.9541335]
[1674230762948,0.36298377,21162.0,21161.0,1.2780357]
[1674230763208,0.04062977,21162.0,21161.0,1.2780357]
[1674230764560,0.04062977,21162.0,21161.0,1.4280357]
[1674230765615,0.04062977,21162.0,21161.0,1.2780357]
[1674230766094,0.04062977,21162.0,21161.0,1.2940357]
[1674230766608,0.04062977,21162.0,21161.0,1.4440357]
[1674230766877,0.04062977,21162.0,21161.0,1.2940357]
[1674230767143,0.04062977,21162.0,21161.0,1.4440357]
[1674230769174,0.04062977,21162.0,21161.0,1.80787622]
[1674230771462,0.04062977,21162.0,21161.0,1.2940357]
[1674230771715,0.04062977,21162.0,21161.0,1.95787622]
[1674230771971,0.04062977,21162.0,21161.0,1.4440357]
[1674230772479,0.04062977,21162.0,21161.0,1.95787622]
[1674230772734,0.04062977,21162.0,21161.0,1.80787622]
[1674230773500,0.04052764,21162.0,21161.0,1.80787622]
[1674230773769,0.04052764,21162.0,21161.0,1.59721057]
[1674230774101,0.04052764,21162.0,21161.0,2.30182992]
[1674230774256,0.04052764,21162.0,21161.0,2.66896517]
[1674230774508,0.04052764,21162.0,21161.0,2.24568485]
[1674230774758,0.04052764,21162.0,21161.0,2.36280168]
[1674230775524,0.04052764,21162.0,21161.0,2.07584582]
[1674230776580,0.04052764,21162.0,21161.0,1.5620053]
[1674230777082,0.04052764,21162.0,21161.0,2.07584582]
[1674230777338,0.04052764,21162.0,21161.0,1.5620053]
[1674230777620,0.04052764,21162.0,21161.0,1.96260927]
[1674230778122,0.04052764,21162.0,21161.0,2.07584582]
[1674230779205,0.04052764,21162.0,21161.0,1.44876875]
[1674230779672,0.04052764,21162.0,21161.0,1.96260927]
[1674230782215,0.04052764,21162.0,21161.0,2.07584582]
[1674230782993,0.04052764,21162.0,21161.0,1.96260927]
[1674230783492,0.04052764,21162.0,21161.0,2.07584582]
[1674230785287,0.04052764,21162.0,21161.0,1.96260927]
[1674230787046,0.04052764,21162.0,21161.0,1.59547402]
[1674230787321,0.36650264,21162.0,21161.0,1.48397402]
[1674230787838,0.36650264,21162.0,21161.0,1.01140702]
[1674230788110,0.73339849,21162.0,21161.0,0.548933]
[1674230788360,0.95679849,21162.0,21161.0,0.03509248]
[1674230788869,1.10679849,21162.0,21161.0,0.03509248]
[1674230789426,1.32841499,21162.0,21161.0,0.03509248]
[1674230789664,1.10679849,21162.0,21161.0,0.03509248]
[1674230791194,0.95679849,21162.0,21161.0,0.03509248]
[1674230792458,1.10679849,21162.0,21161.0,0.03509248]
[1674230794682,1.57934349,21162.0,21161.0,0.03509248]
[1674230795718,1.10679849,21162.0,21161.0,0.03509248]
[1674230795987,1.01455319,21162.0,21161.0,0.03509248]
[1674230796251,1.48709819,21162.0,21161.0,0.03509248]
[1674230796780,1.83025567,21162.0,21161.0,0.03509248]
[1674230797057,1.83025567,21162.0,21161.0,0.03500196]
[1674230797288,1.83590817,21162.0,21161.0,0.03500196]
[1674230797550,1.48709819,21162.0,21161.0,0.03500196]
[1674230798097,2.59924032,21162.0,21161.0,0.03500196]
[1674230798589,2.01336332,21162.0,21161.0,0.03500196]
[1674230798896,1.59879819,21162.0,21161.0,0.03500196]
[1674230799766,1.97635744,21162.0,21161.0,0.03500196]
[1674230800020,1.97278109,21162.0,21161.0,0.03500196]
[1674230800267,1.59879819,21162.0,21161.0,0.03500196]
[1674230801715,2.07134319,21162.0,21161.0,0.03500196]
[1674230802249,2.89048463,21162.0,21161.0,0.03500196]
[1674230802498,2.77730504,21162.0,21161.0,0.03500196]
[1674230802760,2.00476004,21162.0,21161.0,0.03500196]
[1674230803594,2.47730504,21162.0,21161.0,0.03500196]
[1674230804130,2.77730504,21162.0,21161.0,0.03500196]
[1674230805205,2.89048463,21162.0,21161.0,0.03500196]
[1674230805480,3.73079436,21162.0,21161.0,0.03500196]
[1674230805735,3.43867329,21162.0,21161.0,0.03500196]
[1674230806116,4.0925345,21162.0,21161.0,0.03500196]
[1674230806396,4.26132256,21162.0,21161.0,0.03500196]
[1674230806910,4.03496184,21162.0,21161.0,0.03500196]
[1674230808417,4.14741966,21162.0,21161.0,0.03500196]
[1674230809422,0.02996029,21160.0,21158.0,0.04986903]
[1674230809667,1.643681,21159.0,21158.0,0.04986903]
[1674230809986,1.943681,21159.0,21154.0,0.99134114]
[1674230810184,0.1117,21157.0,21154.0,1.03044705]
[1674230810461,0.1117,21155.0,21154.0,0.55774205]
[1674230810704,0.83681245,21155.0,21154.0,0.55774205]
[1674230810941,0.83681245,21155.0,21154.0,0.50863614]
[1674230811191,0.83681245,21155.0,21154.0,0.49863614]
[1674230811454,0.84581245,21155.0,21154.0,0.97135914]
[1674230811728,0.83681245,21155.0,21154.0,0.97135914]
[1674230811985,0.83681245,21155.0,21154.0,0.49863614]
[1674230811986,0.93081245,21155.0,21154.0,0.49863614]
[1674230812230,0.93081245,21155.0,21154.0,0.48863614]
[1674230812749,1.08081245,21155.0,21154.0,0.48863614]
[1674230814428,0.96911245,21155.0,21154.0,0.48863614]
[1674230814666,0.96911245,21155.0,21154.0,0.47863614]
[1674230816203,0.81911245,21155.0,21154.0,0.47863614]
[1674230816516,0.81911245,21155.0,21154.0,1.04523614]
[1674230817958,0.81911245,21155.0,21154.0,1.03523614]
[1674230818928,0.81854367,21155.0,21154.0,1.03523614]
[1674230820572,0.79189367,21155.0,21154.0,1.03523614]
[1674230821318,0.48924167,21155.0,21154.0,1.03523614]
[1674230821563,0.82239067,21155.0,21154.0,1.03523614]
[1674230823334,1.02916544,21155.0,21154.0,1.03523614]
[1674230823857,1.17916544,21155.0,21154.0,1.03523614]
[1674230825162,1.76266644,21155.0,21154.0,1.03523614]
[1674230826148,1.55589167,21155.0,21154.0,1.03523614]
[1674230827172,1.29509167,21155.0,21154.0,1.03523614]
[1674230832217,0.427149,21155.0,21154.0,1.22455711]
[1674230832477,0.094,21155.0,21154.0,1.61965914]
[1674230833252,0.094,21155.0,21154.0,2.09238214]
[1674230834229,0.094,21155.0,21154.0,1.78513255]
[1674230839379,0.58909586,21155.0,21154.0,1.51578214]
[1674230839635,0.84337694,21155.0,21154.0,1.51578214]
[1674230840143,0.87239794,21155.0,21154.0,1.51578214]
[1674230840462,0.87562894,21155.0,21154.0,1.51578214]
[1674230841442,0.094,21155.0,21154.0,1.51578214]
[1674230843734,0.094,21155.0,21154.0,1.80164228]
[1674230844302,0.094,21155.0,21154.0,1.62748214]
[1674230847795,0.48795757,21155.0,21154.0,1.62748214]
[1674230848086,0.48795757,21155.0,21154.0,0.93135914]
[1674230848309,0.80831857,21155.0,21154.0,0.93135914]
[1674230849383,0.93039595,21155.0,21154.0,0.93135914]
[1674230849636,0.93039595,21155.0,21154.0,0.45863614]
[1674230849897,0.93039595,21155.0,21154.0,0.45856634]
[1674230850779,0.80831857,21155.0,21154.0,0.45856634]
[1674230860354,0.80831857,21155.0,21154.0,0.93128934]
[1674230860912,0.48795757,21155.0,21154.0,0.45856634]
[1674230861130,0.79977657,21155.0,21154.0,0.45856634]
[1674230863211,0.80067357,21155.0,21154.0,0.45856634]
[1674230864749,0.48795757,21155.0,21154.0,0.45856634]
[1674230865258,0.48795757,21155.0,21154.0,2.08948969]
[1674230865259,0.094,21155.0,21154.0,2.08948969]
[1674230865515,0.094,21155.0,21154.0,1.88871234]
[1674230865794,0.094,21155.0,21154.0,2.87202234]
[1674230866123,0.094,21155.0,21154.0,3.58382095]
[1674230866319,0.094,21155.0,21154.0,3.95253454]
[1674230866585,0.094,21155.0,21154.0,3.83927784]
[1674230866848,0.094,21155.0,21154.0,3.69256539]
[1674230867094,0.094,21155.0,21154.0,3.46611699]
[1674230867401,0.094,21155.0,21154.0,3.88083453]
[1674230867635,0.37851787,21161.0,21154.0,4.21907239]
[1674230867896,0.63882391,21161.0,21160.0,0.56966634]
[1674230868173,0.37851787,21161.0,21160.0,1.23157631]
[1674230868423,0.37851787,21161.0,21160.0,1.03725534]
[1674230868934,0.46251787,21161.0,21160.0,1.62254434]
[1674230869192,0.084,21161.0,21160.0,1.62254434]
[1674230869718,0.00352764,21162.0,21160.0,1.77154434]
[1674230870196,0.00352764,21162.0,21161.0,0.15]
[1674230870500,0.00352764,21162.0,21161.0,1.095134]
[1674230871339,0.00852764,21162.0,21161.0,1.107134]
[1674230871549,0.00852764,21162.0,21161.0,1.329634]
[1674230871798,0.00852764,21162.0,21161.0,1.6442]
[1674230872069,0.00845914,21162.0,21161.0,1.64904164]
[1674230872318,0.00845914,21162.0,21161.0,1.49904164]
[1674230874120,0.00845914,21162.0,21161.0,1.38734164]
[1674230876215,0.00845914,21162.0,21161.0,1.53734164]
[1674230877013,0.00845914,21162.0,21161.0,1.85482764]
[1674230877280,0.00845914,21162.0,21161.0,1.53734164]
[1674230877546,0.00845914,21162.0,21161.0,1.38734164]
[1674230878089,0.00845914,21162.0,21161.0,1.53734164]
[1674230878605,0.00845914,21162.0,21161.0,1.38734164]
[1674230878860,0.00845914,21162.0,21161.0,1.53734164]
[1674230879370,0.00845914,21162.0,21161.0,1.50164164]
[1674230879628,0.00845914,21162.0,21161.0,1.27654164]
[1674230879887,0.00845914,21162.0,21161.0,1.42654164]
[1674230880417,0.00845914,21162.0,21161.0,1.76337664]
[1674230881415,0.00845914,21162.0,21161.0,1.83847664]
[1674230882682,0.00845914,21162.0,21161.0,2.13080623]
[1674230882962,0.00845914,21162.0,21161.0,1.83080623]
[1674230884522,0.00845914,21162.0,21161.0,1.84355942]
[1674230885605,0.00845914,21162.0,21161.0,1.69355942]
[1674230886562,0.00845914,21162.0,21161.0,1.84355942]
[1674230887331,0.00845914,21162.0,21161.0,1.69355942]
[1674230887858,0.00845914,21162.0,21161.0,1.35672442]
[1674230889663,0.00845914,21162.0,21161.0,0.86183497]
[1674230889919,0.00845914,21162.0,21161.0,1.48440197]
[1674230890183,0.00845914,21162.0,21161.0,1.33440197]
[1674230891478,0.00845914,21162.0,21161.0,1.25930197]
[1674230891734,0.00845914,21162.0,21161.0,1.40930197]
[1674230892252,0.00845914,21162.0,21161.0,1.70748897]
[1674230893539,0.00845914,21162.0,21161.0,1.51972597]
[1674230893799,0.00845914,21162.0,21161.0,1.40930197]
[1674230894297,0.00845914,21162.0,21161.0,1.48460197]
[1674230894583,0.00845914,21162.0,21161.0,1.33460197]
[1674230895055,0.00845914,21162.0,21161.0,1.25930197]
[1674230896081,0.00845914,21162.0,21161.0,0.02475319]
[1674230896082,0.58389916,21162.0,21161.0,0.02475319]
[1674230896333,0.83394047,21162.0,21161.0,0.02475319]
[1674230897601,1.30648547,21162.0,21161.0,0.02475319]
[1674230897854,1.45648547,21162.0,21161.0,0.02475319]
[1674230898103,1.29775216,21162.0,21161.0,0.02475319]
[1674230898387,0.64403914,21162.0,21161.0,0.02475319]
[1674230898847,0.71933914,21162.0,21161.0,0.02475319]
[1674230899098,1.66442914,21162.0,21161.0,0.02475319]
[1674230899343,1.65942914,21162.0,21161.0,0.01275319]
[1674230899597,1.74142914,21162.0,21161.0,0.01375319]
[1674230899842,1.94788524,21162.0,21161.0,0.01275319]
[1674230900095,1.74142914,21162.0,21161.0,0.01375319]
[1674230900596,2.20148737,21162.0,21161.0,0.01375319]
[1674230900837,2.19219451,21162.0,21161.0,0.01375319]
[1674230901860,1.56964951,21162.0,21161.0,0.01375319]
[1674230903146,2.04219451,21162.0,21161.0,0.01375319]
[1674230904196,1.96689451,21162.0,21161.0,0.01375319]
[1674230904458,1.49434951,21162.0,21161.0,0.01375319]
[1674230904961,1.36212248,21162.0,21161.0,0.01375319]
[1674230905214,1.43802248,21162.0,21161.0,0.01375319]
[1674230905717,2.06056748,21162.0,21161.0,0.01375319]
[1674230906768,1.74202914,21162.0,21161.0,0.01375319]
[1674230909039,2.17042448,21162.0,21161.0,0.01375319]
[1674230909541,2.02042448,21162.0,21161.0,0.01375319]
[1674230909783,1.54787948,21162.0,21161.0,0.01375319]
[1674230910573,1.69787948,21162.0,21161.0,0.01375319]
[1674230910838,1.22533448,21162.0,21161.0,0.01375319]
[1674230911078,2.17042448,21162.0,21161.0,0.01375319]
[1674230911853,2.52990604,21162.0,21161.0,0.01375319]
[1674230912101,1.6289657,21162.0,21161.0,0.01375319]
[1674230912422,2.02408374,21162.0,21161.0,0.01375319]
[1674230912846,2.49662874,21162.0,21161.0,0.01375319]
[1674230914133,2.13714718,21162.0,21161.0,0.01375319]
[1674230914388,1.66612914,21162.0,21161.0,0.01375319]
[1674230914636,2.11411872,21162.0,21161.0,0.01375319]
[1674230914883,1.66612914,21162.0,21161.0,0.01365527]
[1674230915389,2.41479186,21162.0,21161.0,0.01365527]
[1674230915641,2.00540744,21162.0,21161.0,0.01365527]
[1674230916130,2.35570314,21162.0,21161.0,0.01365527]
[1674230917453,2.01642484,21162.0,21161.0,0.01365527]
[1674230917653,1.66612914,21162.0,21161.0,0.01365527]
[1674230917899,1.77858433,21162.0,21161.0,0.01365527]
[1674230918156,2.07858433,21162.0,21161.0,0.01365527]
[1674230918912,1.96612914,21162.0,21161.0,0.01365527]
[1674230919167,2.62768693,21162.0,21161.0,0.01365527]
[1674230920384,2.62768693,21162.0,21161.0,0.001]
[1674230921283,2.51523174,21162.0,21161.0,0.001]
[1674230922226,2.62768693,21162.0,21161.0,0.001]
[1674230925254,2.55198693,21162.0,21161.0,0.001]
[1674230927662,2.15448433,21162.0,21161.0,0.001]
[1674230928393,2.2108172,21162.0,21161.0,0.001]
[1674230928696,0.00085912,21160.0,21157.0,0.45856634]
[1674230928960,1.91354697,21159.0,21157.0,0.45856634]
[1674230929247,0.71403779,21158.0,21157.0,0.45856634]
[1674230929511,2.10930579,21158.0,21157.0,0.45856634]
[1674230929764,1.80930579,21158.0,21157.0,0.45856634]
[1674230930281,1.80930579,21158.0,21157.0,0.45956634]
[1674230930767,1.89930579,21158.0,21157.0,0.45856634]
[1674230931877,2.18430365,21158.0,21157.0,0.45856634]
[1674230933484,1.89930579,21158.0,21157.0,0.45856634]
[1674230936398,1.27667179,21158.0,21157.0,0.64788731]
[1674230936643,0.80403779,21158.0,21157.0,0.45856634]
[1674230937158,0.49352579,21158.0,21157.0,0.45856634]
[1674230938175,0.82503179,21158.0,21157.0,0.45856634]
[1674230938695,0.49352579,21158.0,21157.0,0.45856634]
[1674230938974,0.81712179,21158.0,21157.0,0.45856634]
[1674230940485,1.03469682,21158.0,21157.0,0.45856634]
[1674230940996,0.81712179,21158.0,21157.0,0.45856634]
[1674230948192,0.96712179,21158.0,21157.0,0.45856634]
[1674230949586,1.43975579,21158.0,21157.0,0.45856634]
[1674230950131,1.55229319,21158.0,21157.0,0.45856634]
[1674230950662,1.55229319,21158.0,21157.0,0.45844669]